fUST/lending_fUST_20250318
["ID","MTS","AMOUNT","RATE_DAILY","PERIOD"]
[356317399,1742245858760,-694.16,0.00010136,2]
[356317400,1742245858770,-500.0,0.00010136,2]
[356317401,1742245858779,-500.0,0.00010136,2]
[356317402,1742245858788,-500.0,0.00010136,2]
[356317403,1742245858797,-500.0,0.00010136,2]
[356317404,1742245858807,-500.0,0.00010136,2]
[356317405,1742245858817,-1045.21,0.00010136,2]
[356317406,1742245858827,-500.0,0.00010136,2]
[356317407,1742245858836,-500.0,0.00010136,2]
[356317408,1742245858846,-500.0,0.00010136,2]
[356317409,1742245858855,-549.77,0.00010136,2]
[356317410,1742245858865,-500.0,0.00010136,2]
[356317411,1742245858875,-316.07375846,0.00010136,2]
[356317412,1742245858887,-309.65624154,0.00010136,2]
[356317413,1742245858897,-126.35954417,0.00010136,2]
[356317454,1742246580703,-184.46753705,7.58e-05,2]
[356317459,1742246683066,-300.0,7.397e-05,2]
[356317516,1742247038502,-7429.7015048,7.397e-05,2]
[356317517,1742247038513,-338.25124425,7.58e-05,2]
[356317518,1742247038524,-300.0,8.189e-05,2]
[356317519,1742247038535,-339.94725095,8.189e-05,2]
[356317541,1742247044154,-160.05274905,8.189e-05,2]
[356317542,1742247044164,-565.91032857,8.189e-05,2]
[356317543,1742247044174,-500.0,8.189e-05,2]
[356317544,1742247044184,-500.0,8.189e-05,2]
[356317545,1742247044193,-500.0,8.189e-05,2]
[356317546,1742247044202,-500.0,8.189e-05,2]
[356317547,1742247044212,-500.0,8.189e-05,2]
[356317548,1742247044222,-156.64460437,8.189e-05,2]
[356317549,1742247044232,-500.0,8.189e-05,2]
[356317550,1742247044241,-500.0,8.189e-05,2]
[356317551,1742247044250,-69412.9920451,8.19e-05,2]
[356317552,1742247044262,-2050.23537925,8.19e-05,2]
[356317553,1742247044289,-73.62894696,8.19e-05,2]
[356317554,1742247044300,-310.30312845,8.19e-05,2]
[356317557,1742247046708,-1939.49999998,8.19e-05,2]
[356317558,1742247046721,-35136.8223084,8.19e-05,2]
[356317559,1742247046734,-43480.10743056,8.19e-05,2]
[356317560,1742247046746,-48133.72599531,8.19e-05,2]
[356317561,1742247046756,-264.42386796,8.219e-05,2]
[356317562,1742247046766,-500.0,8.219e-05,2]
[356317563,1742247046776,-505.55839014,8.219e-05,2]
[356317564,1742247046786,-560.79823127,8.219e-05,2]
[356317565,1742247046796,-505.9490212,8.219e-05,2]
[356317566,1742247046806,-500.0,8.219e-05,2]
[356317567,1742247046815,-500.0,8.219e-05,2]
[356317568,1742247046825,-500.0,8.219e-05,2]
[356317569,1742247046834,-500.0,8.219e-05,2]
[356317570,1742247046843,-500.0,8.219e-05,2]
[356317571,1742247046853,-500.0,8.219e-05,2]
[356317572,1742247046863,-500.0,8.219e-05,2]
[356317573,1742247046873,-500.0,8.219e-05,2]
[356317574,1742247046883,-500.0,8.219e-05,2]
[356317575,1742247046895,-500.0,8.219e-05,2]
[356317576,1742247046906,-500.0,8.219e-05,2]
[356317577,1742247046916,-500.0,8.219e-05,2]
[356317578,1742247046926,-500.0,8.219e-05,2]
[356317579,1742247046936,-365.0,8.219e-05,2]
[356317580,1742247046947,-500.0,8.219e-05,2]
[356317581,1742247046957,-500.0,8.219e-05,2]
[356317582,1742247046967,-500.0,8.219e-05,2]
[356317583,1742247046977,-274.70715603,8.219e-05,2]
[356317584,1742247046987,-452.14741655,8.219e-05,2]
[356317585,1742247046996,-500.0,8.219e-05,2]
[356317586,1742247047006,-500.0,8.219e-05,2]
[356317587,1742247047016,-500.0,8.219e-05,2]
[356317588,1742247047026,-500.0,8.219e-05,2]
[356317589,1742247047036,-500.0,8.219e-05,2]
[356317590,1742247047047,-500.0,8.219e-05,2]
[356317591,1742247047058,-771.35,8.219e-05,2]
[356317592,1742247047068,-500.0,8.219e-05,2]
[356317593,1742247047078,-500.0,8.219e-05,2]
[356317594,1742247047088,-500.0,8.219e-05,2]
[356317595,1742247047097,-693.79,8.219e-05,2]
[356317596,1742247047108,-500.0,8.219e-05,2]
[356317597,1742247047118,-500.0,8.219e-05,2]
[356317598,1742247047128,-500.0,8.219e-05,2]
[356317599,1742247047137,-765.43,8.219e-05,2]
[356317600,1742247047148,-500.0,8.219e-05,2]
[356317601,1742247047158,-395.00443557,8.219e-05,2]
[356317602,1742247047168,-832.8,8.219e-05,2]
[356317603,1742247047178,-515.83529741,8.219e-05,2]
[356317604,1742247047188,-500.0,8.219e-05,2]
[356317605,1742247047198,-500.0,8.219e-05,2]
[356317606,1742247047208,-504.41618005,8.219e-05,2]
[356317607,1742247047217,-500.0,8.219e-05,2]
[356317608,1742247047227,-500.0,8.219e-05,2]
[356317609,1742247047237,-717.76,8.219e-05,2]
[356317610,1742247047246,-500.0,8.219e-05,2]
[356317611,1742247047257,-500.0,8.219e-05,2]
[356317612,1742247047266,-500.0,8.219e-05,2]
[356317613,1742247047276,-500.0,8.219e-05,2]
[356317614,1742247047286,-500.0,8.219e-05,2]
[356317615,1742247047295,-500.0,8.219e-05,2]
[356317616,1742247047306,-500.0,8.219e-05,2]
[356317617,1742247047316,-500.0,8.219e-05,2]
[356317618,1742247047326,-775.86,8.219e-05,2]
[356317619,1742247047335,-500.0,8.219e-05,2]
[356317620,1742247047345,-500.0,8.219e-05,2]
[356317621,1742247047355,-500.0,8.219e-05,2]
[356317622,1742247047365,-929.61,8.219e-05,2]
[356317623,1742247047376,-645.75,8.219e-05,2]
[356317624,1742247047386,-500.0,8.219e-05,2]
[356317625,1742247047397,-447.19,8.219e-05,2]
[356317626,1742247047406,-500.0,8.219e-05,2]
[356317627,1742247047416,-500.0,8.219e-05,2]
[356317628,1742247047426,-500.0,8.219e-05,2]
[356317629,1742247047435,-500.0,8.219e-05,2]
[356317630,1742247047445,-500.0,8.219e-05,2]
[356317631,1742247047455,-500.0,8.219e-05,2]
[356317632,1742247047464,-500.0,8.219e-05,2]
[356317633,1742247047474,-500.0,8.219e-05,2]
[356317634,1742247047483,-500.0,8.219e-05,2]
[356317635,1742247047493,-500.0,8.219e-05,2]
[356317636,1742247047503,-500.0,8.219e-05,2]
[356317637,1742247047512,-500.0,8.219e-05,2]
[356317638,1742247047522,-500.0,8.219e-05,2]
[356317639,1742247047532,-500.0,8.219e-05,2]
[356317640,1742247047542,-500.0,8.219e-05,2]
[356317641,1742247047551,-500.0,8.219e-05,2]
[356317642,1742247047561,-500.0,8.219e-05,2]
[356317643,1742247047571,-500.0,8.219e-05,2]
[356317644,1742247047581,-500.0,8.219e-05,2]
[356317645,1742247047590,-220.47633481,8.219e-05,2]
[356317646,1742247047600,-500.0,8.219e-05,2]
[356317647,1742247047614,-500.0,8.219e-05,2]
[356317648,1742247047624,-500.0,8.219e-05,2]
[356317649,1742247047633,-500.0,8.219e-05,2]
[356317650,1742247047643,-500.0,8.219e-05,2]
[356317651,1742247047654,-500.0,8.219e-05,2]
[356317652,1742247047663,-500.0,8.219e-05,2]
[356317653,1742247047672,-500.0,8.219e-05,2]
[356317654,1742247047683,-283.08,8.219e-05,2]
[356317655,1742247047693,-500.0,8.219e-05,2]
[356317656,1742247047703,-500.0,8.219e-05,2]
[356317657,1742247047712,-500.0,8.219e-05,2]
[356317658,1742247047722,-500.0,8.219e-05,2]
[356317659,1742247047731,-500.0,8.219e-05,2]
[356317660,1742247047741,-500.0,8.219e-05,2]
[356317661,1742247047751,-629.44,8.219e-05,2]
[356317662,1742247047760,-500.0,8.219e-05,2]
[356317663,1742247047770,-500.0,8.219e-05,2]
[356317664,1742247047779,-500.0,8.219e-05,2]
[356317665,1742247047789,-500.0,8.219e-05,2]
[356317666,1742247047799,-500.0,8.219e-05,2]
[356317667,1742247047808,-500.0,8.219e-05,2]
[356317668,1742247047818,-500.0,8.219e-05,2]
[356317669,1742247047828,-500.0,8.219e-05,2]
[356317670,1742247047837,-500.0,8.219e-05,2]
[356317671,1742247047847,-500.0,8.219e-05,2]
[356317672,1742247047857,-603.83,8.219e-05,2]
[356317673,1742247047867,-500.0,8.219e-05,2]
[356317674,1742247047877,-500.0,8.219e-05,2]
[356317675,1742247047887,-500.0,8.219e-05,2]
[356317676,1742247047897,-500.0,8.219e-05,2]
[356317677,1742247047906,-500.0,8.219e-05,2]
[356317678,1742247047916,-640.17,8.219e-05,2]
[356317679,1742247047925,-1280.59,8.219e-05,2]
[356317680,1742247047935,-7.9053653,8.219e-05,2]
[356317681,1742247047948,-492.0946347,8.219e-05,2]
[356317682,1742247047959,-2918.5,8.219e-05,2]
[356317683,1742247047969,-500.0,8.219e-05,2]
[356317684,1742247047978,-513.47,8.219e-05,2]
[356317685,1742247047988,-681.74,8.219e-05,2]
[356317686,1742247047997,-501.51,8.219e-05,2]
[356317687,1742247048007,-154.79341472,8.219e-05,2]
[356317688,1742247048016,-500.0,8.219e-05,2]
[356317689,1742247048025,-1609.6,8.219e-05,2]
[356317690,1742247048035,-500.0,8.219e-05,2]
[356317691,1742247048045,-500.0,8.219e-05,2]
[356317692,1742247048054,-500.0,8.219e-05,2]
[356317693,1742247048064,-591.34391445,8.219e-05,2]
[356317694,1742247048074,-1686.94803613,8.219e-05,2]
[356317770,1742248240122,-300.0,8.118e-05,2]
[356317771,1742248240132,-17050.81176428,8.119e-05,2]
[356317772,1742248240143,-2926.7180561,8.119e-05,2]
[356317773,1742248240153,-151.0,8.214e-05,2]
[356317774,1742248240167,-600.0,8.214e-05,2]
[356317775,1742248240178,-500.0,8.218e-05,2]
[356317776,1742248240187,-372.38096001,8.218e-05,2]
[356317777,1742248240197,-308.40098389,8.218e-05,2]
[356317809,1742248243283,-191.59901611,8.218e-05,2]
[356317810,1742248243293,-500.0,8.218e-05,2]
[356317811,1742248243303,-45.56906908,8.218e-05,2]
[356317812,1742248243323,-137.04747755,8.218e-05,2]
[356317813,1742248243332,-273.86249745,8.218e-05,2]
[356317849,1742248835007,-859.48879107,0.0002,120]
[356317850,1742248835032,-340.51120893,0.0002,120]
[356317873,1742249432207,-300.0,8.117e-05,2]
[356317874,1742249432217,-445.11908519,8.118e-05,2]
[356317875,1742249432227,-500.0,8.118e-05,2]
[356317876,1742249432236,-80.22556288,8.118e-05,2]
[356317919,1742249440151,-224.48604671,8.118e-05,2]
[356317920,1742249440162,-500.0,8.118e-05,2]
[356317921,1742249440171,-204.57395329,8.118e-05,2]
[356317922,1742249441296,-0.00152516,8.118e-05,2]
[356317924,1742249443763,-295.42452155,8.118e-05,2]
[356317925,1742249443773,-399.001,8.118e-05,2]
[356317926,1742249443783,-1435.07306952,8.119e-05,2]
[356317927,1742249443794,-19457.36251943,8.119e-05,2]
[356317928,1742249443806,-26543.24763227,8.119e-05,2]
[356317942,1742249446060,-18700.06978408,8.119e-05,2]
[356317943,1742249446072,-10000.0,8.119e-05,2]
[356317944,1742249446084,-11149.2293453,8.119e-05,2]
[356317961,1742250363091,-299.99991055,8.117e-05,2]
[356317988,1742250632207,-1445.2314132,7.972e-05,2]
[356317989,1742250632217,-300.0,8.117e-05,2]
[356317990,1742250632227,-500.0,8.118e-05,2]
[356317991,1742250632236,-252.66044465,8.118e-05,2]
[356317992,1742250632246,-1000.0,8.118e-05,2]
[356317993,1742250632255,-1000.0,8.118e-05,2]
[356317994,1742250632264,-1000.0,8.118e-05,2]
[356317995,1742250632274,-1083.33,8.118e-05,2]
[356317996,1742250632283,-93645.56487869,8.119e-05,2]
[356317997,1742250632293,-154.31052305,8.218e-05,2]
[356317998,1742250632302,-497.23148292,8.219e-05,2]
[356317999,1742250632311,-500.0,8.219e-05,2]
[356318000,1742250632321,-577.15503395,8.219e-05,2]
[356318001,1742250632330,-500.0,8.219e-05,2]
[356318002,1742250632340,-510.81193693,8.219e-05,2]
[356318003,1742250632350,-505.65812512,8.219e-05,2]
[356318004,1742250632360,-500.0,8.219e-05,2]
[356318005,1742250632370,-500.0,8.219e-05,2]
[356318007,1742250632379,-500.0,8.219e-05,2]
[356318008,1742250632388,-506.10342789,8.219e-05,2]
[356318009,1742250632398,-500.0,8.219e-05,2]
[356318010,1742250632407,-500.0,8.219e-05,2]
[356318011,1742250632417,-500.0,8.219e-05,2]
[356318012,1742250632426,-500.0,8.219e-05,2]
[356318013,1742250632435,-500.0,8.219e-05,2]
[356318014,1742250632445,-500.0,8.219e-05,2]
[356318015,1742250632454,-500.0,8.219e-05,2]
[356318016,1742250632463,-500.0,8.219e-05,2]
[356318017,1742250632472,-500.0,8.219e-05,2]
[356318018,1742250632481,-310.55,8.219e-05,2]
[356318019,1742250632490,-500.0,8.219e-05,2]
[356318020,1742250632499,-500.0,8.219e-05,2]
[356318021,1742250632509,-500.0,8.219e-05,2]
[356318022,1742250632518,-500.0,8.219e-05,2]
[356318023,1742250632528,-233.10965585,8.219e-05,2]
[356318024,1742250632537,-500.0,8.219e-05,2]
[356318025,1742250632546,-500.0,8.219e-05,2]
[356318026,1742250632556,-500.0,8.219e-05,2]
[356318027,1742250632566,-500.0,8.219e-05,2]
[356318028,1742250632576,-500.0,8.219e-05,2]
[356318029,1742250632586,-664.88,8.219e-05,2]
[356318030,1742250632595,-733.54,8.219e-05,2]
[356318031,1742250632606,-500.0,8.219e-05,2]
[356318032,1742250632615,-818.93,8.219e-05,2]
[356318033,1742250632626,-500.0,8.219e-05,2]
[356318034,1742250632635,-500.0,8.219e-05,2]
[356318035,1742250632645,-500.0,8.219e-05,2]
[356318036,1742250632654,-615.29,8.219e-05,2]
[356318037,1742250632664,-687.85,8.219e-05,2]
[356318038,1742250632674,-500.0,8.219e-05,2]
[356318039,1742250632683,-500.0,8.219e-05,2]
[356318040,1742250632692,-425.80797875,8.219e-05,2]
[356318045,1742250638028,-74.19202125,8.219e-05,2]
[356318046,1742250638038,-500.0,8.219e-05,2]
[356318047,1742250638048,-500.0,8.219e-05,2]
[356318048,1742250638057,-500.0,8.219e-05,2]
[356318049,1742250638066,-500.0,8.219e-05,2]
[356318050,1742250638075,-500.0,8.219e-05,2]
[356318051,1742250638085,-618.84,8.219e-05,2]
[356318052,1742250638094,-297.79,8.219e-05,2]
[356318053,1742250638104,-743.53,8.219e-05,2]
[356318054,1742250638114,-890.88,8.219e-05,2]
[356318055,1742250638123,-482.23584835,8.219e-05,2]
[356318056,1742250638135,-17.76415165,8.219e-05,2]
[356318057,1742250638145,-403.21084835,8.219e-05,2]
[356318062,1742250640440,-96.78915165,8.219e-05,2]
[356318063,1742250640450,-500.0,8.219e-05,2]
[356318064,1742250640460,-500.0,8.219e-05,2]
[356318065,1742250640470,-500.0,8.219e-05,2]
[356318066,1742250640479,-529.79,8.219e-05,2]
[356318067,1742250640489,-500.0,8.219e-05,2]
[356318068,1742250640500,-500.0,8.219e-05,2]
[356318069,1742250640510,-500.0,8.219e-05,2]
[356318070,1742250640519,-500.0,8.219e-05,2]
[356318071,1742250640529,-500.0,8.219e-05,2]
[356318072,1742250640539,-500.0,8.219e-05,2]
[356318073,1742250640548,-501.28701684,8.219e-05,2]
[356318074,1742250640558,-500.0,8.219e-05,2]
[356318075,1742250640568,-500.0,8.219e-05,2]
[356318076,1742250640578,-500.0,8.219e-05,2]
[356318077,1742250640588,-500.0,8.219e-05,2]
[356318078,1742250640598,-500.0,8.219e-05,2]
[356318079,1742250640608,-266.76390808,8.219e-05,2]
[356318080,1742250640618,-500.0,8.219e-05,2]
[356318081,1742250640628,-500.0,8.219e-05,2]
[356318082,1742250640638,-500.0,8.219e-05,2]
[356318083,1742250640647,-500.0,8.219e-05,2]
[356318084,1742250640657,-500.0,8.219e-05,2]
[356318085,1742250640670,-500.0,8.219e-05,2]
[356318086,1742250640680,-500.0,8.219e-05,2]
[356318087,1742250640689,-500.0,8.219e-05,2]
[356318088,1742250640699,-500.0,8.219e-05,2]
[356318089,1742250640708,-500.0,8.219e-05,2]
[356318090,1742250640717,-500.0,8.219e-05,2]
[356318091,1742250640728,-276.3780669,8.219e-05,2]
[356318092,1742250640737,-500.0,8.219e-05,2]
[356318093,1742250640748,-500.0,8.219e-05,2]
[356318094,1742250640757,-944.04,8.219e-05,2]
[356318095,1742250640766,-204.72,8.219e-05,2]
[356318096,1742250640775,-613.54591395,8.219e-05,2]
[356318097,1742250640784,-500.0,8.219e-05,2]
[356318098,1742250640794,-500.0,8.219e-05,2]
[356318099,1742250640803,-500.0,8.219e-05,2]
[356318100,1742250640813,-578.67,8.219e-05,2]
[356318101,1742250640825,-500.0,8.219e-05,2]
[356318102,1742250640835,-500.0,8.219e-05,2]
[356318103,1742250640845,-406.44891567,8.219e-05,2]
[356318104,1742250640855,-500.0,8.219e-05,2]
[356318105,1742250640865,-500.0,8.219e-05,2]
[356318106,1742250640874,-500.0,8.219e-05,2]
[356318107,1742250640885,-500.0,8.219e-05,2]
[356318108,1742250640897,-500.0,8.219e-05,2]
[356318109,1742250640907,-1754.55,8.219e-05,2]
[356318110,1742250640916,-725.79,8.219e-05,2]
[356318111,1742250640926,-500.0,8.219e-05,2]
[356318112,1742250640936,-194.41380069,8.219e-05,2]
[356318113,1742250640946,-1194.05,8.219e-05,2]
[356318114,1742250640956,-674.17,8.219e-05,2]
[356318115,1742250640965,-501.44,8.219e-05,2]
[356318116,1742250640975,-500.0,8.219e-05,2]
[356318117,1742250640984,-500.0,8.219e-05,2]
[356318118,1742250640993,-500.0,8.219e-05,2]
[356318119,1742250641003,-1567.13,8.219e-05,2]
[356318120,1742250641012,-500.0,8.219e-05,2]
[356318121,1742250641022,-512.91,8.219e-05,2]
[356318122,1742250641031,-500.0,8.219e-05,2]
[356318123,1742250641040,-500.0,8.219e-05,2]
[356318124,1742250641049,-3477.95,8.219e-05,2]
[356318125,1742250641059,-3392.48,8.219e-05,2]
[356318126,1742250641069,-500.0,8.219e-05,2]
[356318127,1742250641078,-500.0,8.219e-05,2]
[356318128,1742250641087,-500.0,8.219e-05,2]
[356318129,1742250641097,-3334.18,8.219e-05,2]
[356318130,1742250641105,-500.0,8.219e-05,2]
[356318131,1742250641114,-500.0,8.219e-05,2]
[356318132,1742250641125,-2010.84,8.219e-05,2]
[356318133,1742250641134,-1670.34,8.219e-05,2]
[356318134,1742250641144,-500.0,8.219e-05,2]
[356318135,1742250641153,-500.0,8.219e-05,2]
[356318136,1742250641163,-500.0,8.219e-05,2]
[356318137,1742250641172,-500.0,8.219e-05,2]
[356318138,1742250641182,-500.0,8.219e-05,2]
[356318139,1742250641192,-1033.76,8.219e-05,2]
[356318140,1742250641202,-1112.91,8.219e-05,2]
[356318141,1742250641212,-500.0,8.219e-05,2]
[356318142,1742250641221,-500.0,8.219e-05,2]
[356318143,1742250641231,-500.0,8.219e-05,2]
[356318144,1742250641240,-2072.15,8.219e-05,2]
[356318145,1742250641250,-7649.62,8.219e-05,2]
[356318146,1742250641260,-1036.77,8.219e-05,2]
[356318147,1742250641270,-500.0,8.219e-05,2]
[356318148,1742250641279,-511.78064464,8.219e-05,2]
[356318149,1742250641289,-500.0,8.219e-05,2]
[356318150,1742250641299,-500.0,8.219e-05,2]
[356318151,1742250641309,-500.0,8.219e-05,2]
[356318152,1742250641318,-500.0,8.219e-05,2]
[356318153,1742250641328,-1247.36,8.219e-05,2]
[356318154,1742250641337,-28897.70856158,8.219e-05,2]
[356318165,1742250643462,-513.18702861,8.219e-05,2]
[356318166,1742250643474,-1711.09063286,8.219e-05,2]
[356318172,1742250646166,-4175.94609229,8.219e-05,2]
[356318275,1742251838324,-1083.9235599,7.972e-05,2]
[356318276,1742251838333,-300.0,8.117e-05,2]
[356318277,1742251838343,-500.0,8.118e-05,2]
[356318278,1742251838353,-107.55590309,8.118e-05,2]
[356318302,1742251841818,-0.01600575,8.118e-05,2]
[356318303,1742251841843,-392.42809116,8.118e-05,2]
[356318304,1742251841853,-500.0,8.118e-05,2]
[356318305,1742251841863,-500.0,8.118e-05,2]
[356318306,1742251841872,-398.85870835,8.118e-05,2]
[356318307,1742251841881,-500.0,8.118e-05,2]
[356318308,1742251841890,-294.73799255,8.118e-05,2]
[356318309,1742251841899,-1000.0,8.118e-05,2]
[356318310,1742251841910,-44587.00915256,8.119e-05,2]
[356318311,1742251841919,-151.0,8.218e-05,2]
[356318312,1742251841929,-526.86231125,8.218e-05,2]
[356318313,1742251841938,-169.75657938,8.219e-05,2]
[356318314,1742251841948,-405.936959,8.219e-05,2]
[356318315,1742251841957,-405.936959,8.219e-05,2]
[356318316,1742251841966,-405.936959,8.219e-05,2]
[356318317,1742251841977,-405.936959,8.219e-05,2]
[356318318,1742251841987,-405.936959,8.219e-05,2]
[356318319,1742251841996,-405.936959,8.219e-05,2]
[356318320,1742251842006,-405.936959,8.219e-05,2]
[356318321,1742251842015,-405.936959,8.219e-05,2]
[356318322,1742251842024,-405.936959,8.219e-05,2]
[356318323,1742251842034,-405.936959,8.219e-05,2]
[356318324,1742251842043,-316.79634133,8.219e-05,2]
[356318325,1742251842053,-500.0,8.219e-05,2]
[356318326,1742251842063,-500.0,8.219e-05,2]
[356318327,1742251842072,-500.0,8.219e-05,2]
[356318328,1742251842082,-500.0,8.219e-05,2]
[356318329,1742251842091,-500.0,8.219e-05,2]
[356318330,1742251842100,-500.0,8.219e-05,2]
[356318331,1742251842110,-500.0,8.219e-05,2]
[356318332,1742251842119,-500.0,8.219e-05,2]
[356318333,1742251842129,-500.0,8.219e-05,2]
[356318334,1742251842139,-644.16580333,8.219e-05,2]
[356318335,1742251842148,-500.0,8.219e-05,2]
[356318336,1742251842158,-500.0,8.219e-05,2]
[356318337,1742251842167,-500.0,8.219e-05,2]
[356318338,1742251842176,-500.0,8.219e-05,2]
[356318339,1742251842186,-500.0,8.219e-05,2]
[356318340,1742251842195,-500.0,8.219e-05,2]
[356318341,1742251842205,-500.0,8.219e-05,2]
[356318342,1742251842214,-500.0,8.219e-05,2]
[356318343,1742251842224,-500.0,8.219e-05,2]
[356318344,1742251842233,-500.0,8.219e-05,2]
[356318345,1742251842243,-351.84861357,8.219e-05,2]
[356318346,1742251842253,-500.0,8.219e-05,2]
[356318347,1742251842262,-500.0,8.219e-05,2]
[356318348,1742251842271,-500.0,8.219e-05,2]
[356318349,1742251842284,-500.0,8.219e-05,2]
[356318350,1742251842294,-500.0,8.219e-05,2]
[356318351,1742251842303,-500.0,8.219e-05,2]
[356318352,1742251842312,-500.0,8.219e-05,2]
[356318353,1742251842323,-500.0,8.219e-05,2]
[356318354,1742251842332,-500.0,8.219e-05,2]
[356318355,1742251842342,-500.0,8.219e-05,2]
[356318356,1742251842351,-500.0,8.219e-05,2]
[356318357,1742251842360,-500.0,8.219e-05,2]
[356318358,1742251842370,-500.0,8.219e-05,2]
[356318359,1742251842379,-500.0,8.219e-05,2]
[356318360,1742251842388,-500.0,8.219e-05,2]
[356318361,1742251842397,-500.0,8.219e-05,2]
[356318362,1742251842407,-584.37247262,8.219e-05,2]
[356318363,1742251842416,-500.0,8.219e-05,2]
[356318364,1742251842425,-708.51,8.219e-05,2]
[356318365,1742251842434,-500.0,8.219e-05,2]
[356318366,1742251842444,-500.0,8.219e-05,2]
[356318367,1742251842454,-500.0,8.219e-05,2]
[356318368,1742251842463,-500.0,8.219e-05,2]
[356318369,1742251842473,-500.0,8.219e-05,2]
[356318370,1742251842482,-500.0,8.219e-05,2]
[356318371,1742251842491,-485.08,8.219e-05,2]
[356318372,1742251842500,-500.0,8.219e-05,2]
[356318373,1742251842510,-500.0,8.219e-05,2]
[356318374,1742251842519,-500.0,8.219e-05,2]
[356318375,1742251842528,-500.0,8.219e-05,2]
[356318376,1742251842537,-500.0,8.219e-05,2]
[356318377,1742251842548,-500.0,8.219e-05,2]
[356318378,1742251842558,-634.72,8.219e-05,2]
[356318379,1742251842567,-500.0,8.219e-05,2]
[356318380,1742251842577,-511.63,8.219e-05,2]
[356318381,1742251842586,-754.22,8.219e-05,2]
[356318382,1742251842595,-500.0,8.219e-05,2]
[356318383,1742251842604,-500.0,8.219e-05,2]
[356318384,1742251842614,-897.22,8.219e-05,2]
[356318385,1742251842623,-500.0,8.219e-05,2]
[356318386,1742251842632,-500.0,8.219e-05,2]
[356318387,1742251842642,-500.0,8.219e-05,2]
[356318388,1742251842651,-509.21,8.219e-05,2]
[356318389,1742251842660,-500.0,8.219e-05,2]
[356318390,1742251842670,-500.0,8.219e-05,2]
[356318391,1742251842679,-500.0,8.219e-05,2]
[356318392,1742251842689,-500.0,8.219e-05,2]
[356318393,1742251842699,-500.0,8.219e-05,2]
[356318394,1742251842709,-500.0,8.219e-05,2]
[356318395,1742251842719,-500.0,8.219e-05,2]
[356318396,1742251842729,-500.0,8.219e-05,2]
[356318397,1742251842739,-500.0,8.219e-05,2]
[356318398,1742251842749,-500.0,8.219e-05,2]
[356318399,1742251842758,-500.0,8.219e-05,2]
[356318400,1742251842768,-500.0,8.219e-05,2]
[356318401,1742251842778,-500.0,8.219e-05,2]
[356318402,1742251842787,-500.0,8.219e-05,2]
[356318403,1742251842796,-500.0,8.219e-05,2]
[356318405,1742251842805,-500.0,8.219e-05,2]
[356318406,1742251842815,-500.0,8.219e-05,2]
[356318407,1742251842825,-500.0,8.219e-05,2]
[356318408,1742251842834,-500.0,8.219e-05,2]
[356318409,1742251842843,-500.0,8.219e-05,2]
[356318410,1742251842852,-500.0,8.219e-05,2]
[356318411,1742251842862,-500.0,8.219e-05,2]
[356318412,1742251842871,-500.0,8.219e-05,2]
[356318413,1742251842880,-500.0,8.219e-05,2]
[356318414,1742251842889,-500.0,8.219e-05,2]
[356318415,1742251842899,-500.0,8.219e-05,2]
[356318416,1742251842909,-500.0,8.219e-05,2]
[356318417,1742251842920,-500.0,8.219e-05,2]
[356318418,1742251842929,-500.0,8.219e-05,2]
[356318419,1742251842939,-500.0,8.219e-05,2]
[356318420,1742251842948,-500.0,8.219e-05,2]
[356318421,1742251842958,-500.0,8.219e-05,2]
[356318422,1742251842967,-357.87960877,8.219e-05,2]
[356318423,1742251842977,-500.0,8.219e-05,2]
[356318424,1742251842987,-500.0,8.219e-05,2]
[356318425,1742251842997,-500.0,8.219e-05,2]
[356318426,1742251843007,-500.0,8.219e-05,2]
[356318428,1742251843016,-500.0,8.219e-05,2]
[356318430,1742251843025,-500.0,8.219e-05,2]
[356318432,1742251843035,-500.0,8.219e-05,2]
[356318435,1742251843044,-543.05,8.219e-05,2]
[356318438,1742251843054,-500.0,8.219e-05,2]
[356318440,1742251843063,-500.0,8.219e-05,2]